bitfinex-derivatives/quotes_SOLF0:USTF0_20241218
["timestamp","ask_amount","ask_price","bid_price","bid_amount"]
[1734508729596,5.79099839,215.99,215.96,2.3152]
[1734508730095,5.79099839,216.01,215.96,2.3152]
[1734508731495,8.10579839,216.01,215.97,5.53901727]
[1734508732998,2.3149,216.0,215.97,5.53901727]
[1734508733303,5.79099839,216.01,215.93,7.97099839]
[1734508733502,2.315,215.99,215.95,2.3154]
[1734508734302,5.79099839,215.97,215.94,5.64905293]
[1734508734500,5.79099839,215.97,215.93,2.18]
[1734508734696,5.79099839,215.97,215.91,2.3158]
[1734508734998,2.3154,215.96,215.92,4.80626103]
[1734508735201,2.3154,215.96,215.91,2.3158]
[1734508735399,2.3155,215.95,215.92,4.80624161]
[1734508735598,2.3155,215.95,215.91,2.3158]
[1734508735801,2.3155,215.95,215.92,4.80601546]
[1734508736001,2.3155,215.95,215.91,2.3158]
[1734508736205,2.3155,215.95,215.92,4.80660266]
[1734508736503,2.3154,215.96,215.91,8.10679839]
[1734508736704,2.3154,215.96,215.92,4.80681034]
[1734508736997,2.18,216.0,215.93,5.79099839]
[1734508736998,4.495,216.0,215.93,5.79099839]
[1734508737202,2.315,216.0,215.93,5.79099839]
[1734508737403,3.7822,216.03,215.95,5.79099839]
[1734508737404,9.57319839,216.03,215.95,5.79099839]
[1734508737599,2.3148,216.01,215.97,2.3152]
[1734508738505,2.3148,216.01,215.95,7.97099839]
[1734508738708,2.3148,216.01,215.96,2.3153]
[1734508740308,2.3147,216.02,215.97,2.3152]
[1734508740508,2.9297,216.11,215.97,5.79099839]
[1734508740712,5.79099839,216.06,215.97,5.79099839]
[1734508740913,2.18,216.08,216.0,2.3149]
[1734508740914,4.4941,216.08,216.0,2.3149]
[1734508741114,5.79099839,216.06,216.0,2.3149]
[1734508742210,5.79099839,216.06,215.99,8.10599839]
[1734508742411,5.79099839,216.04,215.99,2.315]
[1734508742604,5.79099839,216.04,215.97,5.79099839]
[1734508743109,5.79099839,216.04,215.97,8.10619839]
[1734508743605,5.79099839,216.04,215.97,12.90510376]
[1734508743810,5.79099839,216.04,215.97,8.10619839]
[1734508744010,5.79099839,216.04,215.97,12.90510376]
[1734508744212,5.79099839,216.04,215.97,8.10619839]
[1734508744810,5.79099839,216.04,215.98,2.3151]
[1734508746208,5.79099839,216.04,215.99,2.315]
[1734508747106,2.3142,216.07,215.97,10.5859587]
[1734508747107,2.3141,216.08,216.0,2.3149]
[1734508747412,5.79099839,216.07,216.01,5.79099839]
[1734508748409,5.79099839,216.07,216.03,2.3146]
[1734508748715,5.79099839,216.07,216.01,5.79099839]
[1734508749513,5.79099839,216.07,216.02,2.3147]
[1734508749908,2.18,216.09,216.01,5.79099839]
[1734508750115,86.24137279,216.12,216.03,5.79099839]
[1734508751415,86.24137279,216.12,216.06,2.3143]
[1734508753513,86.24137279,216.12,216.03,5.79099839]
[1734508753714,86.24137279,216.12,216.06,2.3143]
[1734508753912,5.79099839,216.1,216.06,2.3143]
[1734508754715,86.24137279,216.12,216.03,5.79099839]
[1734508755421,5.79099839,216.1,216.06,2.3142]
[1734508755918,80.4503744,216.12,216.0,2.18]
[1734508755919,5.79099839,216.08,216.0,4.78707059]
[1734508756109,5.79099839,216.08,216.01,2.18]
[1734508756914,5.79099839,216.08,216.02,2.3146]
[1734508761322,2.3139,216.1,216.02,8.10559839]
[1734508761621,5.79099839,216.09,216.02,8.10559839]
[1734508762015,5.79099839,216.07,216.0,4.80115804]
[1734508762218,5.79099839,216.05,215.99,4.4949]
[1734508762814,2.18,216.07,216.0,5.79099839]
[1734508763120,5.79099839,216.08,216.01,2.3147]
[1734508763717,5.79099839,216.08,216.02,2.3146]
[1734508765022,5.79099839,216.08,216.0,5.79099839]
[1734508765023,5.79099839,216.08,216.03,2.3146]
[1734508765322,5.79099839,216.08,216.01,4.80940345]
[1734508765525,5.79099839,216.08,216.0,5.79099839]
[1734508765819,5.79099839,216.08,216.01,4.81085442]
[1734508766018,5.79099839,216.08,216.0,5.79099839]
[1734508766521,5.79099839,216.08,216.02,2.3147]
[1734508767823,5.79099839,216.08,215.99,2.18]
[1734508768122,2.18,216.1,216.01,5.79099839]
[1734508768326,7.97099839,216.09,216.02,4.81791247]
[1734508768624,7.97099839,216.09,216.01,5.79099839]
[1734508769119,7.97099839,216.09,216.02,4.81770555]
[1734508769321,10.28499839,216.09,216.02,2.3146]
[1734508770315,5.79099839,216.07,216.03,4.82064587]
[1734508770519,5.79099839,216.07,216.02,2.3146]
[1734508770918,8.10519839,216.07,215.99,8.10589839]
[1734508771129,5.79099839,216.05,216.0,4.82120886]
[1734508771320,5.79099839,216.05,216.01,4.82120886]
[1734508771525,5.79099839,216.05,215.99,8.10589839]
[1734508771725,5.79099839,216.05,216.0,4.82148855]
[1734508772029,8.10519839,216.07,216.01,4.82148855]
[1734508772224,8.10519839,216.07,215.99,8.10589839]
[1734508772428,8.10519839,216.07,216.0,4.82076594]
[1734508772727,8.10519839,216.07,215.99,8.10589839]
[1734508772930,5.79099839,216.08,216.01,8.10579839]
[1734508773222,5.79099839,216.08,216.01,12.92615083]
[1734508773529,5.79099839,216.08,216.01,2.3148]
[1734508775325,5.79099839,216.08,216.02,4.81990148]
[1734508775625,5.79099839,216.08,216.01,2.3148]
[1734508776427,5.79099839,216.08,216.02,4.82047805]
[1734508776627,5.79099839,216.08,216.01,2.3148]
[1734508776822,5.79099839,216.06,216.0,5.79099839]
[1734508777029,5.79099839,216.06,216.01,4.82059671]
[1734508777229,5.79099839,216.06,215.99,2.3149]
[1734508777429,5.79099839,216.06,216.0,4.82114387]
[1734508777625,5.79099839,216.06,216.01,4.82114387]
[1734508777819,5.79099839,216.06,215.99,2.3149]
[1734508778025,5.79099839,216.06,216.0,4.82032109]
[1734508778229,5.79099839,216.06,216.01,4.82032109]
[1734508778427,5.79099839,216.06,216.02,4.82032109]
[1734508778730,5.79099839,216.06,215.99,2.3149]
[1734508779030,5.79099839,216.06,216.0,4.82010226]
[1734508779230,5.79099839,216.06,216.01,4.82010226]
[1734508779528,5.79099839,216.06,215.99,2.3149]
[1734508779924,5.79099839,216.06,216.0,7.13685493]
[1734508780120,5.79099839,216.06,216.01,4.82195493]
[1734508780321,5.79099839,216.06,216.02,4.82195493]
[1734508780523,5.79099839,216.06,216.0,2.3149]
[1734508780725,5.79099839,216.06,216.01,4.82332158]
[1734508780927,5.79099839,216.06,216.02,4.82332158]
[1734508781123,5.79099839,216.06,216.0,2.3149]
[1734508781322,5.79099839,216.06,216.01,4.82520981]
[1734508781526,5.79099839,216.06,216.02,4.82520981]
[1734508781728,5.79099839,216.06,216.0,2.3149]
[1734508781927,5.79099839,216.06,216.01,4.82675009]
[1734508782124,5.79099839,216.06,216.02,4.82675009]
[1734508782330,5.79099839,216.06,216.03,4.82811052]
[1734508782532,5.79099839,216.06,216.0,2.3149]
[1734508782735,5.79099839,216.06,216.01,4.8288522]
[1734508782932,5.79099839,216.06,216.02,4.8288522]
[1734508783134,5.79099839,216.06,216.03,4.8288522]
[1734508783430,5.79099839,216.04,215.93,55.47223927]
[1734508783627,5.79099839,216.01,215.94,7.00993426]
[1734508783831,5.79099839,216.01,215.95,4.82993426]
[1734508784133,5.79099839,216.01,215.96,4.82993426]
[1734508784436,5.79099839,216.01,215.97,4.82993426]
[1734508784629,5.79099839,216.01,215.94,2.3155]
[1734508784835,4.4947,216.03,215.95,12.93926064]
[1734508785035,2.9145,216.05,215.99,5.79099839]
[1734508785236,192.63569925,216.08,215.99,5.79099839]
[1734508785237,7.97099839,216.07,215.99,5.79099839]
[1734508785432,5.79099839,216.07,216.01,2.3148]
[1734508785634,5.79099839,216.07,216.01,8.10579839]
[1734508786135,5.79099839,216.07,216.02,4.8295308]
[1734508786435,5.79099839,216.07,216.01,8.10579839]
[1734508786636,5.79099839,216.07,216.02,4.82997299]
[1734508786837,5.79099839,216.07,216.01,8.10579839]
[1734508787139,5.79099839,216.07,216.02,4.83029041]
[1734508787337,5.79099839,216.07,216.01,8.10579839]
[1734508787638,5.79099839,216.07,216.02,4.82914849]
[1734508787935,2.18,216.09,216.03,4.82914849]
[1734508788136,5.79099839,216.08,216.02,2.3147]
[1734508788328,5.79099839,216.08,216.01,5.79099839]
[1734508788329,5.79099839,216.08,216.03,4.82905569]
[1734508788639,5.79099839,216.08,216.01,5.79099839]
[1734508788934,5.79099839,216.08,216.02,4.82916878]
[1734508789137,5.79099839,216.08,216.01,5.79099839]
[1734508789138,5.79099839,216.08,216.03,4.82916878]
[1734508789338,5.79099839,216.08,216.01,5.79099839]
[1734508789533,5.79099839,216.08,216.03,2.3146]
[1734508792539,5.79099839,216.08,216.04,4.83004216]
[1734508792734,5.79099839,216.08,216.03,2.3146]
[1734508793236,5.79099839,216.08,216.04,4.83098433]
[1734508793438,5.79099839,216.08,216.03,2.3146]
[1734508793738,5.79099839,216.08,216.04,4.83102041]
[1734508793940,5.79099839,216.08,216.03,2.3146]
[1734508794241,5.79099839,216.08,216.04,4.8312226]
[1734508794440,5.79099839,216.08,216.03,2.3146]
[1734508794640,5.79099839,216.08,216.04,4.83098552]
[1734508794836,5.79099839,216.08,216.03,2.3146]
[1734508795038,5.79099839,216.08,216.04,4.83085113]
[1734508795237,5.79099839,216.08,216.03,2.3146]
[1734508795439,5.79099839,216.08,216.04,4.83082522]
[1734508795640,5.79099839,216.08,216.03,2.3146]
[1734508795834,5.79099839,216.08,216.04,4.83087282]
[1734508796038,5.79099839,216.06,215.98,5.79099839]
[1734508796344,5.79099839,216.04,215.99,4.82991087]
[1734508796739,5.79099839,216.04,216.0,4.82991087]
[1734508796943,5.79099839,216.04,216.01,4.82991087]
[1734508797140,5.79099839,216.04,215.98,2.3151]
[1734508797443,5.79099839,216.04,215.99,4.83147751]
[1734508797641,5.79099839,216.04,216.0,4.83147751]
[1734508797941,5.79099839,216.04,216.01,4.83147751]
[1734508798145,5.79099839,216.04,215.95,7.97099839]
[1734508798447,8.10569839,216.02,215.96,4.83169593]
[1734508798744,8.10569839,216.02,215.97,4.83169593]
[1734508799042,5.79099839,216.0,215.93,5.79099839]
[1734508799342,2.18,215.99,215.98,4.83286852]
[1734508799644,2.18,216.0,215.9,5.79099839]
[1734508799946,2.18,216.0,215.92,5.79099839]
[1734508800150,1.5421,216.03,215.89,3.1063977]
[1734508800151,1.5421,216.03,215.94,5.79099839]
[1734508800341,3.7221,216.03,215.96,2.3154]
[1734508800642,3.7221,216.03,215.94,2.18]
[1734508800937,6.0367,216.03,215.94,4.4955]
[1734508801647,6.0367,216.03,215.95,4.830628]
[1734508801842,6.0367,216.03,215.96,4.830628]
[1734508802043,6.0367,216.03,215.97,4.830628]
[1734508802547,6.0367,216.03,215.98,4.830628]
[1734508802742,6.0367,216.03,215.94,4.4955]
[1734508802942,6.0367,216.03,215.95,4.833608]
[1734508803241,6.0367,216.03,215.94,4.4955]
[1734508803242,6.0367,216.03,215.96,4.833608]
[1734508803545,6.0367,216.03,215.97,4.833608]
[1734508803744,6.0367,216.03,215.98,4.833608]
[1734508803947,6.0367,216.03,215.94,4.4955]
[1734508804247,6.0367,216.03,215.95,4.8280063]
[1734508804442,6.0367,216.03,215.96,4.8280063]
[1734508804638,6.0367,216.03,215.97,4.8280063]
[1734508804843,6.0367,216.03,215.94,4.4955]
[1734508804844,6.0367,216.03,215.98,4.8280063]
[1734508805049,6.0367,216.03,215.94,4.4955]
[1734508805450,6.0367,216.03,215.95,4.8279105]
[1734508805648,6.0367,216.03,215.94,4.4955]
[1734508805849,6.0367,216.03,215.96,4.8279304]
[1734508806151,2.18,216.06,215.95,4.8279304]
[1734508806340,2.18,216.06,215.96,4.8279304]
[1734508806545,2.18,216.06,215.97,4.8279304]
[1734508806748,2.3144,216.05,215.98,4.8279304]
[1734508807044,2.9768,216.1,215.99,7.0079304]
[1734508807248,193.32439,216.15,216.0,4.8279304]
[1734508807444,2.18,216.14,216.01,4.8279304]
[1734508807645,2.18,216.14,216.02,4.8279304]
[1734508807843,2.18,216.14,216.03,4.8279304]
[1734508808042,2.18,216.14,216.04,4.8279304]
[1734508808347,2.18,216.14,216.03,2.18]
[1734508808547,2.3143,216.07,216.0,1.6017]
[1734508808747,2.18,216.08,216.0,1.6017]
[1734508809150,2.18,216.08,216.01,4.8259138]
[1734508809352,4.5519,216.07,215.92,2.18]
[1734508809650,4.5519,216.07,215.93,4.8297324]
[1734508809846,4.5519,216.07,215.94,4.8297324]
[1734508810051,4.5519,216.07,215.95,4.8297324]
[1734508810253,4.5519,216.07,215.96,4.8297324]
[1734508810551,4.5519,216.07,215.97,4.8297324]
[1734508810752,2.3146,216.04,215.98,4.8297324]
[1734508810953,2.18,216.03,215.99,4.8297324]
[1734508811153,2.18,216.02,216.0,4.8297324]
[1734508811354,2.18,216.01,215.92,2.18]
[1734508811548,4.5519,216.07,215.92,2.18]
[1734508811549,2.18,216.0,215.92,2.18]
[1734508811749,2.18,216.0,215.93,4.8311573]
[1734508812046,2.18,216.0,215.94,4.8311573]
[1734508812246,2.18,216.0,215.95,4.8311573]
[1734508812445,2.18,216.0,215.96,4.8311573]
[1734508812650,2.18,216.0,215.97,4.8311573]
[1734508812851,2.18,216.0,215.98,4.8311573]
[1734508813046,4.4949,216.0,215.99,4.8311573]
[1734508813350,2.18,216.0,215.99,4.8311573]
[1734508813948,2.3149,216.01,215.99,4.8311573]
[1734508814159,2.3149,216.01,216.0,4.8311573]
[1734508814451,4.4949,216.01,216.0,4.8311573]
[1734508814752,2.18,216.01,216.0,4.8311573]
[1734508815451,2.18,216.01,216.0,9.6555392]
[1734508815754,2.18,216.01,216.0,2.4131819]
[1734508816352,4.4948,216.01,216.0,2.4131819]
[1734508816552,2.18,216.01,215.92,2.3157]
[1734508817450,2.3149,216.0,215.92,2.3157]
[1734508817655,2.18,216.04,215.9,3.0614]
[1734508818251,2.3147,216.03,215.94,2.3156]
[1734508818455,13.89,216.03,215.89,0.9263977]
[1734508818759,2.18,216.04,215.84,14.4182817]
[1734508818958,2.18,216.03,215.82,2.18]
[1734508819150,3.0416,216.07,215.82,2.18]
[1734508819151,2.18,216.02,215.82,2.18]
[1734508819353,2.3153,215.98,215.82,2.18]
[1734508819553,2.18,215.99,215.82,2.18]
[1734508819758,2.18,215.98,215.82,2.18]
[1734508819956,2.18,215.97,215.82,2.18]
[1734508820160,2.18,215.96,215.82,2.18]
[1734508820354,2.18,215.95,215.82,2.18]
[1734508822655,0.7309,216.06,215.82,2.18]
[1734508822861,2.18,216.05,215.82,2.18]
[1734508824560,2.18,216.04,215.82,2.18]
[1734508824761,2.18,216.04,215.83,0.85105759]
[1734508824962,74.19653152,216.06,215.83,1.77771282]
[1734508825161,2.18,216.05,215.84,0.85105759]
[1734508825356,2.18,216.04,215.84,0.85105759]
[1734508825555,2.18,216.04,215.85,0.92656937]
[1734508825762,2.18,216.04,215.86,0.85105759]
[1734508825962,2.18,216.04,215.87,2.18]
[1734508826159,2.18,216.05,215.87,2.18]
[1734508826367,2.18,216.1,215.88,2.39194794]
[1734508826564,5.2842,216.14,215.89,0.85084794]
[1734508827057,5.2842,216.14,215.9,1.4596]
[1734508827261,5.2842,216.14,215.91,1.77715982]
[1734508827455,13.89,216.24,215.92,3.03084794]
[1734508827662,2.18,216.17,215.93,4.36569167]
[1734508827861,2.18,216.16,215.94,8.26318963]
[1734508828060,2.18,216.16,215.92,2.18]
[1734508828061,2.18,216.16,215.95,9.73458963]
[1734508828262,2.18,216.16,215.96,8.26225448]
[1734508828465,2.18,216.16,215.97,5.69484373]
[1734508828762,2.18,216.16,215.98,9.18826614]
[1734508828965,2.18,216.16,215.99,8.26225448]
[1734508829165,2.18,216.16,216.0,8.26225448]
[1734508829361,2.18,216.16,216.01,8.26225448]
[1734508829561,2.18,216.16,216.02,10.44225448]
[1734508829762,2.18,216.16,216.03,8.26225448]
[1734508829964,2.18,216.16,216.04,8.26225448]
[1734508830265,2.18,216.16,216.05,9.73365448]
[1734508830455,2.18,216.16,216.06,8.26225448]
[1734508830662,2.18,216.16,216.07,10.44225448]
[1734508830856,2.18,216.16,216.08,8.26225448]
[1734508831162,2.18,216.16,216.09,8.26225448]
[1734508831361,2.18,216.16,216.1,3.51484373]
[1734508831557,2.18,216.16,216.1,4.73882464]
[1734508831757,2.18,216.16,216.07,2.18]
[1734508832060,2.18,216.16,216.08,8.2466728]
[1734508832263,2.18,216.16,216.09,8.2466728]
[1734508832462,75.10968479,216.21,216.07,2.18]
[1734508832463,2.18,216.17,216.1,8.2466728]
[1734508832663,2.18,216.17,216.11,4.73883019]
[1734508832866,2.18,216.18,216.12,4.73883019]
[1734508833062,2.18,216.18,216.07,2.18]
[1734508833267,2.18,216.18,216.08,8.24289835]
[1734508833463,2.18,216.18,216.09,8.24289835]
[1734508833668,2.18,216.18,216.1,8.24289835]
[1734508833969,2.18,216.18,216.11,4.73666367]
[1734508834269,2.18,216.18,216.07,2.18]
[1734508834563,2.18,216.18,216.04,2.18]
[1734508834763,2.18,216.18,216.05,3.50540904]
[1734508834969,2.18,216.18,216.08,4.73553397]
[1734508835368,2.18,216.18,216.02,2.18]
[1734508835571,2.18,216.18,216.03,8.24196712]
[1734508835866,2.18,216.18,216.04,3.50587039]
[1734508836067,2.18,216.18,216.05,3.50587039]
[1734508836267,2.18,216.18,216.06,4.73609673]
[1734508836460,2.18,216.18,216.07,4.73609673]
[1734508836663,2.18,216.18,215.99,6.6927]
[1734508836860,2.18,216.18,216.0,8.24902651]
[1734508837061,2.18,216.18,216.01,8.24902651]
[1734508837263,2.18,216.18,216.02,8.24902651]
[1734508837465,2.18,216.18,216.03,8.24902651]
[1734508837660,2.18,216.18,216.04,8.24902651]
[1734508837969,2.18,216.18,215.95,2.18]
[1734508838166,2.18,216.18,215.96,8.25476299]
[1734508838467,2.18,216.18,216.04,5.7931367]
[1734508838468,5.7931367,216.11,216.04,5.7931367]
[1734508838771,5.7931367,216.09,216.02,5.7931367]
[1734508838965,2.18,216.08,216.03,4.74266509]
[1734508839263,2.18,216.08,216.04,4.74266509]
[1734508839464,2.18,216.08,216.02,5.7931367]
[1734508839671,2.18,216.08,216.03,4.74271514]
[1734508839969,2.18,216.08,216.04,4.74271514]
[1734508840170,2.18,216.08,216.02,5.7931367]
[1734508840367,2.18,216.08,216.03,4.74341113]
[1734508840568,2.18,216.08,216.04,4.74341113]
[1734508840769,2.18,216.08,216.02,5.7931367]
[1734508840968,2.18,216.08,216.03,4.74322365]
[1734508841169,2.18,216.08,216.04,4.74322365]
[1734508841367,1.4835,216.1,216.04,5.7931367]
[1734508841571,3.6635,216.1,216.06,5.7931367]
[1734508841767,2.18,216.1,216.07,4.74248279]
[1734508842064,2.18,216.1,216.06,5.7931367]
[1734508842270,2.18,216.1,216.07,4.74090138]
[1734508842567,2.18,216.1,216.08,4.74010358]
[1734508842772,2.18,216.1,216.06,5.7931367]
[1734508842964,2.18,216.1,216.07,4.74033991]
[1734508843170,2.18,216.1,216.08,4.74033991]
[1734508843371,2.18,216.1,216.06,5.7931367]
[1734508843672,2.18,216.1,216.07,4.74013152]
[1734508843872,2.18,216.1,216.08,4.74013152]
[1734508844070,2.18,216.1,216.06,5.7931367]
[1734508844272,2.18,216.1,216.07,4.74015862]
[1734508844471,2.18,216.1,216.06,5.7931367]
[1734508844672,2.18,216.1,216.07,4.73950615]
[1734508844873,2.18,216.1,216.06,5.7931367]
[1734508845269,2.18,216.1,216.07,4.73962821]
[1734508845577,2.18,216.1,216.01,2.18]
[1734508845578,5.7931367,216.08,216.01,5.7931367]
[1734508845778,5.7931367,216.06,216.02,8.25134638]
[1734508845982,2.24,216.05,216.03,4.74145614]
[1734508846274,2.24,216.05,216.04,4.74145614]
[1734508846473,2.24,216.05,215.99,5.7931367]
[1734508846672,2.24,216.05,216.0,8.25358342]
[1734508846874,2.24,216.05,216.01,4.74272517]
[1734508847074,2.24,216.05,216.02,4.74272517]
[1734508847275,2.24,216.05,215.99,5.7931367]
[1734508847475,2.24,216.05,216.0,8.25416964]
[1734508847677,2.24,216.05,216.01,4.74304869]
[1734508847876,2.24,216.05,215.99,5.7931367]
[1734508848181,2.24,216.05,216.0,8.25422205]
[1734508848480,2.24,216.05,215.96,9.05581749]
[1734508848481,2.24,216.05,216.01,4.74308709]
[1734508848781,2.24,216.05,215.96,9.05581749]
[1734508849083,2.24,216.05,215.97,8.25424693]
[1734508849279,2.24,216.05,215.98,8.25424693]
[1734508849478,2.24,216.05,215.99,8.25424693]
[1734508849679,2.24,216.05,216.0,8.25424693]
[1734508849880,2.24,216.05,216.01,4.74310132]
[1734508850081,2.24,216.05,215.96,9.05581749]
[1734508850383,2.24,216.05,215.97,8.25458438]
[1734508850576,2.24,216.05,215.98,8.25458438]
[1734508850777,2.24,216.05,215.99,8.25458438]
[1734508850979,2.24,216.05,216.0,8.25458438]
[1734508851180,2.24,216.05,216.01,4.74329507]
[1734508851479,2.24,216.05,216.02,4.74319006]
[1734508851684,2.24,216.05,215.96,9.05581749]
[1734508851881,2.24,216.05,215.97,8.25464333]
[1734508852084,2.24,216.05,215.98,8.25464333]
[1734508852283,2.24,216.05,215.99,8.25464333]
[1734508852483,2.24,216.05,216.0,8.25464333]
[1734508852684,2.24,216.05,215.96,9.05581749]
[1734508852685,2.24,216.05,216.01,4.74332904]
[1734508852885,2.24,216.05,216.02,4.74332904]
[1734508853085,2.24,216.05,215.96,9.05581749]
[1734508853286,2.24,216.05,215.97,8.25641509]
[1734508853486,2.24,216.05,215.98,8.25641509]
[1734508853686,2.24,216.05,215.99,8.25641509]
[1734508853886,2.24,216.05,216.0,4.7443146]
[1734508854082,2.24,216.05,216.01,4.7443146]
[1734508854284,2.24,216.05,215.96,9.05581749]
[1734508854478,2.24,216.05,215.97,8.25707967]
[1734508854787,2.24,216.05,215.98,5.82768111]
[1734508854984,2.24,216.05,215.99,4.74562874]
[1734508855190,2.24,216.05,215.98,2.3151]
[1734508855191,4.5544,216.05,216.0,4.74606464]
[1734508855388,4.5544,216.05,216.01,4.74606464]
[1734508855586,4.5544,216.05,215.93,9.05581749]
[1734508855783,4.5544,216.05,215.94,8.26002325]
[1734508855989,4.5544,216.05,215.95,8.26002325]
[1734508856189,2.3147,216.03,215.96,8.26002325]
[1734508856489,2.3147,216.03,215.97,8.26002325]
[1734508856690,2.3147,216.03,215.98,8.26002325]
[1734508856894,3.0373,216.09,215.99,8.26002325]
[1734508857088,2.24,216.08,216.0,8.26002325]
[1734508857391,3.0373,216.09,216.01,8.26002325]
[1734508857392,2.24,216.07,216.01,8.26002325]
[1734508857592,2.24,216.07,216.02,4.74641215]
[1734508857789,2.24,216.07,216.03,4.74641215]
[1734508857996,2.24,216.07,216.04,4.74641215]
[1734508858195,2.24,216.07,216.05,4.74641215]
[1734508858495,2.24,216.07,216.03,2.3145]
[1734508858694,9.05581749,216.16,216.04,8.26782479]
[1734508858896,2.3135,216.14,216.05,8.26782479]
[1734508859096,2.3135,216.14,216.06,10.58202479]
[1734508859391,2.3136,216.13,216.07,8.26782479]
[1734508859589,2.24,216.15,216.08,4.75159284]
[1734508859896,2.24,216.14,216.09,4.75159284]
[1734508860093,2.3136,216.13,216.1,4.75159284]
[1734508860393,9.05581749,216.13,216.05,2.3144]
[1734508860591,2.3137,216.12,216.06,8.26353316]
[1734508860795,2.3137,216.12,216.07,4.74847828]
[1734508861097,9.05581749,216.13,216.1,2.3138]
[1734508861098,5.54098193,216.13,216.1,2.3138]
[1734508861291,5.54098193,216.13,216.02,9.05581749]
[1734508861491,9.05581749,216.13,216.03,8.26387344]
[1734508861696,9.05581749,216.13,216.02,9.05581749]
[1734508861697,9.05581749,216.13,216.04,8.26387344]
[1734508861993,9.05581749,216.13,216.05,8.26387344]
[1734508862195,9.05581749,216.13,216.06,4.7486765]
[1734508862397,9.05581749,216.1,216.07,4.7486765]
[1734508862592,2.24,216.09,216.05,2.3144]
[1734508862792,3.791,216.09,216.06,4.7509728]
[1734508862992,2.3141,216.08,216.07,4.7509728]
[1734508863792,2.3141,216.08,215.96,9.05581749]
[1734508863991,2.3141,216.08,216.07,4.75145281]
[1734508864298,6.105,216.09,216.05,2.3144]
[1734508864490,6.105,216.09,216.06,4.75145281]
[1734508864696,6.105,216.09,216.05,2.3144]
[1734508864697,3.791,216.09,216.07,4.75145281]
[1734508864993,3.791,216.09,216.05,2.3144]
[1734508865196,3.791,216.09,216.06,4.75224997]
[1734508865397,2.3141,216.08,216.07,4.75224997]
[1734508866297,2.3141,216.08,215.94,6.85]
[1734508866298,9.05581749,216.08,215.96,9.05581749]
[1734508866592,9.05581749,216.08,215.97,3.52179808]
[1734508866799,9.05581749,216.08,215.96,9.05581749]
[1734508866800,9.05581749,216.08,215.98,3.52107022]
[1734508867000,9.05581749,216.08,215.99,3.52107022]
[1734508867197,2.3144,216.06,216.02,2.3147]
[1734508867591,9.05581749,216.08,215.96,9.05581749]
[1734508867799,2.3145,216.05,216.01,2.3147]
[1734508868100,2.24,216.04,215.96,9.05581749]
[1734508868293,2.24,216.04,215.99,2.315]
[1734508868494,2.24,216.04,215.9,9.05581749]
[1734508868691,2.3154,215.96,215.92,2.3157]
[1734508868900,2.3154,215.96,215.91,3.5256887]
[1734508868901,2.24,215.95,215.93,3.5256887]
[1734508869101,2.24,215.95,215.94,3.5256887]
[1734508869797,4.5555,215.95,215.94,3.5256887]
[1734508870003,4.5555,215.95,215.89,5.80150416]
[1734508870198,2.24,215.95,215.91,2.3158]
[1734508870395,2.3161,215.89,215.69,52.94]
[1734508870600,2.24,215.95,215.69,52.94]
[1734508870601,2.24,215.88,215.83,5.80150416]
[1734508870891,5.80150416,215.9,215.84,2.3166]
[1734508870892,2.24,215.87,215.84,2.3166]
[1734508871091,2.24,215.87,215.76,2.24]
[1734508871092,2.24,215.87,215.85,5.80150416]
[1734508871595,2.24,215.86,215.85,5.80150416]
[1734508871796,2.24,215.88,215.85,5.80150416]
[1734508872000,2.24,215.9,215.86,9.0647215]
[1734508872306,2.24,215.92,215.86,9.0647215]
[1734508872493,2.24,215.91,215.89,2.3161]
[1734508873001,2.24,215.91,215.86,9.0647215]
[1734508873792,2.24,215.91,215.88,2.3161]
[1734508874899,2.24,215.91,215.87,2.3163]
[1734508876098,2.24,215.91,215.83,9.0647215]
[1734508876600,2.316,215.9,215.82,5.5115]
[1734508876803,2.316,215.9,215.82,3.91]
[1734508877303,2.316,215.9,215.83,2.3167]